fUSD/lending_fUSD_20250204
["ID","MTS","AMOUNT","RATE_DAILY","PERIOD"]
[351657568,1738692646720,-525.69,0.00010136,2]
[351657570,1738692646729,-390.4,0.00010136,2]
[351657572,1738692646739,-500.0,0.00010136,2]
[351657574,1738692646748,-500.0,0.00010136,2]
[351657575,1738692646758,-297.11,0.00010136,2]
[351657576,1738692646767,-500.0,0.00010136,2]
[351657577,1738692646778,-500.0,0.00010136,2]
[351657578,1738692646787,-500.0,0.00010136,2]
[351657579,1738692646795,-296.9902599,0.00010136,2]
[351657580,1738692646808,-322.76,0.00010136,2]
[351657581,1738692646817,-500.0,0.00010136,2]
[351657582,1738692646826,-500.0,0.00010136,2]
[351657583,1738692646836,-184.5,0.00010136,2]
[351657584,1738692646845,-612.27,0.00010136,2]
[351657585,1738692646855,-500.0,0.00010136,2]
[351657586,1738692646864,-165.24,0.00010136,2]
[351657587,1738692646873,-500.0,0.00010136,2]
[351657588,1738692646883,-500.0,0.00010136,2]
[351657589,1738692646892,-500.0,0.00010136,2]
[351657590,1738692646901,-500.0,0.00010136,2]
[351657591,1738692646911,-323.29,0.00010136,2]
[351657592,1738692646921,-500.0,0.00010136,2]
[351657593,1738692646930,-533.42,0.00010136,2]
[351657594,1738692646940,-500.0,0.00010136,2]
[351657595,1738692646950,-500.0,0.00010136,2]
[351657596,1738692646959,-500.0,0.00010136,2]
[351657597,1738692646968,-500.0,0.00010136,2]
[351657598,1738692646978,-340.48,0.00010136,2]
[351657599,1738692646988,-500.0,0.00010136,2]
[351657600,1738692646998,-500.0,0.00010136,2]
[351657601,1738692647010,-500.0,0.00010136,2]
[351657602,1738692647021,-234.7,0.00010136,2]
[351657603,1738692647033,-2301.93,0.00010136,2]
[351657604,1738692647042,-500.0,0.00010136,2]
[351657605,1738692647053,-500.0,0.00010136,2]
[351657606,1738692647062,-340.0,0.00010136,2]
[351657607,1738692647072,-500.0,0.00010136,2]
[351657608,1738692647081,-500.0,0.00010136,2]
[351657609,1738692647091,-170.52,0.00010136,2]
[351657610,1738692647100,-168.56,0.00010136,2]
[351657611,1738692647111,-407.33,0.00010136,2]
[351657612,1738692647122,-640.93,0.00010136,2]
[351657613,1738692647131,-356.15,0.00010136,2]
[351657614,1738692647142,-345.09,0.00010136,2]
[351657615,1738692647152,-500.0,0.00010136,2]
[351657616,1738692647161,-500.0,0.00010136,2]
[351657617,1738692647171,-500.0,0.00010136,2]
[351657618,1738692647180,-500.0,0.00010136,2]
[351657619,1738692647191,-592.8,0.00010136,2]
[351657620,1738692647200,-500.0,0.00010136,2]
[351657621,1738692647210,-427.7,0.00010136,2]
[351657622,1738692647219,-500.0,0.00010136,2]
[351657623,1738692647229,-272.89,0.00010136,2]
[351657624,1738692647238,-500.0,0.00010136,2]
[351657625,1738692647248,-500.0,0.00010136,2]
[351657626,1738692647257,-500.0,0.00010136,2]
[351657627,1738692647267,-500.0,0.00010136,2]
[351657628,1738692647276,-500.0,0.00010136,2]
[351657629,1738692647286,-500.0,0.00010136,2]
[351657630,1738692647295,-303.64,0.00010136,2]
[351657631,1738692647306,-500.0,0.00010136,2]
[351657632,1738692647315,-238.47,0.00010136,2]
[351657633,1738692647324,-500.0,0.00010136,2]
[351657634,1738692647334,-500.0,0.00010136,2]
[351657635,1738692647343,-604.54,0.00010136,2]
[351657636,1738692647352,-919.24,0.00010136,2]
[351657637,1738692647361,-222.33,0.00010136,2]
[351657638,1738692647371,-2414.84,0.00010136,2]
[351657639,1738692647380,-500.0,0.00010136,2]
[351657640,1738692647389,-268.76,0.00010136,2]
[351657641,1738692647399,-500.0,0.00010136,2]
[351657642,1738692647408,-500.0,0.00010136,2]
[351657643,1738692647417,-500.0,0.00010136,2]
[351657644,1738692647426,-500.0,0.00010136,2]
[351657645,1738692647435,-500.0,0.00010136,2]
[351657646,1738692647445,-500.0,0.00010136,2]
[351657647,1738692647455,-500.0,0.00010136,2]
[351657648,1738692647464,-500.0,0.00010136,2]
[351657649,1738692647473,-492.34,0.00010136,2]
[351657650,1738692647483,-500.0,0.00010136,2]
[351657651,1738692647495,-500.0,0.00010136,2]
[351657652,1738692647505,-500.0,0.00010136,2]
[351657653,1738692647515,-500.0,0.00010136,2]
[351657654,1738692647525,-560.09,0.00010136,2]
[351657655,1738692647534,-500.0,0.00010136,2]
[351657656,1738692647544,-500.0,0.00010136,2]
[351657657,1738692647556,-500.0,0.00010136,2]
[351657658,1738692647566,-500.0,0.00010136,2]
[351657659,1738692647576,-433.01447085,0.00010136,2]
[351657660,1738692647586,-500.0,0.00010136,2]
[351657661,1738692647595,-500.0,0.00010136,2]
[351657662,1738692647605,-500.0,0.00010136,2]
[351657663,1738692647615,-500.0,0.00010136,2]
[351657664,1738692647624,-500.0,0.00010136,2]
[351657665,1738692647633,-500.0,0.00010136,2]
[351657666,1738692647644,-500.0,0.00010136,2]
[351657667,1738692647653,-292.47847506,0.00010136,2]
[351657668,1738692647663,-500.0,0.00010136,2]
[351657669,1738692647673,-1165.38,0.00010136,2]
[351657670,1738692647683,-500.0,0.00010136,2]
[351657671,1738692647693,-500.0,0.00010136,2]
[351657672,1738692647702,-1016.48,0.00010136,2]
[351657673,1738692647712,-500.0,0.00010136,2]
[351657674,1738692647722,-500.0,0.00010136,2]
[351657675,1738692647731,-203.09,0.00010136,2]
[351657676,1738692647741,-500.0,0.00010136,2]
[351657677,1738692647751,-1112.06,0.00010136,2]
[351657678,1738692647761,-936.12,0.00010136,2]
[351657679,1738692647771,-500.0,0.00010136,2]
[351657680,1738692647780,-500.0,0.00010136,2]
[351657681,1738692647789,-500.0,0.00010136,2]
[351657682,1738692647801,-500.0,0.00010136,2]
[351657683,1738692647811,-500.0,0.00010136,2]
[351657684,1738692647821,-235.16,0.00010136,2]
[351657685,1738692647832,-500.0,0.00010136,2]
[351657686,1738692647842,-400.28,0.00010136,2]
[351657687,1738692647851,-252.01,0.00010136,2]
[351657688,1738692647861,-762.39,0.00010136,2]
[351657689,1738692647871,-585.6,0.00010136,2]
[351657690,1738692647880,-483.74,0.00010136,2]
[351657691,1738692647891,-514.48,0.00010136,2]
[351657692,1738692647901,-375.91,0.00010136,2]
[351657693,1738692647910,-500.0,0.00010136,2]
[351657694,1738692647920,-532.68,0.00010136,2]
[351657695,1738692647930,-300.24,0.00010136,2]
[351657696,1738692647940,-421.81,0.00010136,2]
[351657697,1738692647950,-500.0,0.00010136,2]
[351657698,1738692647960,-500.0,0.00010136,2]
[351657699,1738692647970,-684.72,0.00010136,2]
[351657700,1738692647980,-500.0,0.00010136,2]
[351657701,1738692647990,-349.88,0.00010136,2]
[351657702,1738692648000,-500.0,0.00010136,2]
[351657703,1738692648010,-500.0,0.00010136,2]
[351657704,1738692648020,-500.0,0.00010136,2]
[351657705,1738692648030,-500.0,0.00010136,2]
[351657706,1738692648039,-500.0,0.00010136,2]
[351657707,1738692648050,-500.0,0.00010136,2]
[351657708,1738692648060,-500.0,0.00010136,2]
[351657709,1738692648069,-500.0,0.00010136,2]
[351657710,1738692648079,-248.75,0.00010136,2]
[351657711,1738692648090,-500.0,0.00010136,2]
[351657712,1738692648100,-928.48,0.00010137,2]
[351657713,1738692648112,-641.79,0.00010137,2]
[351657714,1738692648123,-150.52,0.00010137,2]
[351657715,1738692648133,-1002.96965609,0.00010193,2]
[351657716,1738692648143,-281.24405436,0.00010199,2]
[351657717,1738692648153,-200.0,0.00010201,2]
[351657718,1738692648164,-200.0,0.00010201,2]
[351657719,1738692648174,-200.0,0.00010201,2]
[351657720,1738692648184,-200.0,0.00010201,2]
[351657721,1738692648198,-1272.0,0.00010263,2]
[351657722,1738692648209,-2023.0,0.00010263,2]
[351657723,1738692648218,-568.0,0.00010263,2]
[351657724,1738692648228,-500.0,0.00010272,2]
[351657725,1738692648238,-262.51,0.00010272,2]
[351657726,1738692648248,-286.25,0.00010272,2]
[351657727,1738692648259,-225.97,0.00010272,2]
[351657728,1738692648268,-500.0,0.00010272,2]
[351657729,1738692648279,-500.0,0.00010272,2]
[351657730,1738692648289,-551.64,0.00010272,2]
[351657731,1738692648301,-500.0,0.00010272,2]
[351657732,1738692648315,-271.16,0.00010272,2]
[351657733,1738692648323,-274.75,0.00010272,2]
[351657734,1738692648333,-252.55,0.00010272,2]
[351657735,1738692648342,-325.6,0.00010272,2]
[351657736,1738692648352,-500.0,0.00010272,2]
[351657737,1738692648362,-500.0,0.00010272,2]
[351657738,1738692648372,-579.76,0.00010272,2]
[351657739,1738692648382,-500.0,0.00010272,2]
[351657740,1738692648392,-500.0,0.00010272,2]
[351657741,1738692648401,-634.496518,0.00010272,2]
[351657742,1738692648411,-500.0,0.00010272,2]
[351657743,1738692648420,-517.55,0.00010272,2]
[351657744,1738692648430,-403.55,0.00010272,2]
[351657745,1738692648440,-161.72,0.00010272,2]
[351657746,1738692648449,-500.0,0.00010272,2]
[351657747,1738692648459,-563.800411,0.00010272,2]
[351657748,1738692648469,-500.0,0.00010272,2]
[351657749,1738692648479,-500.0,0.00010272,2]
[351657750,1738692648488,-592.39,0.00010272,2]
[351657751,1738692648498,-210.49,0.00010272,2]
[351657752,1738692648508,-500.0,0.00010272,2]
[351657753,1738692648517,-578.04,0.00010272,2]
[351657754,1738692648527,-374.75,0.00010272,2]
[351657755,1738692648537,-427.71,0.00010272,2]
[351657756,1738692648546,-604.84,0.00010272,2]
[351657757,1738692648556,-584.96,0.00010272,2]
[351657758,1738692648567,-606.98,0.00010272,2]
[351657759,1738692648576,-332.2,0.00010272,2]
[351657760,1738692648586,-500.0,0.00010272,2]
[351657761,1738692648596,-500.0,0.00010272,2]
[351657762,1738692648605,-500.0,0.00010272,2]
[351657763,1738692648615,-500.0,0.00010272,2]
[351657764,1738692648626,-500.0,0.00010272,2]
[351657765,1738692648635,-500.0,0.00010272,2]
[351657766,1738692648645,-339.19,0.00010272,2]
[351657767,1738692648654,-190.3014991,0.00010272,2]
[351657768,1738692648663,-500.0,0.00010272,2]
[351657769,1738692648673,-500.0,0.00010272,2]
[351657770,1738692648683,-500.0,0.00010272,2]
[351657771,1738692648694,-500.0,0.00010272,2]
[351657772,1738692648704,-575.71,0.00010272,2]
[351657773,1738692648715,-587.45,0.00010272,2]
[351657774,1738692648725,-500.0,0.00010272,2]
[351657775,1738692648735,-500.0,0.00010272,2]
[351657776,1738692648744,-500.0,0.00010272,2]
[351657777,1738692648754,-500.0,0.00010272,2]
[351657778,1738692648764,-500.0,0.00010272,2]
[351657779,1738692648773,-1116.97,0.00010272,2]
[351657780,1738692648783,-702.39,0.00010272,2]
[351657781,1738692648792,-1009.36,0.00010272,2]
[351657782,1738692648804,-500.0,0.00010272,2]
[351657783,1738692648813,-1278.5,0.00010272,2]
[351657784,1738692648823,-500.0,0.00010272,2]
[351657785,1738692648833,-500.0,0.00010272,2]
[351657786,1738692648843,-500.0,0.00010272,2]
[351657787,1738692648852,-500.0,0.00010272,2]
[351657788,1738692648863,-595.35,0.00010272,2]
[351657789,1738692648873,-500.0,0.00010272,2]
[351657790,1738692648883,-500.0,0.00010272,2]
[351657791,1738692648894,-500.0,0.00010272,2]
[351657792,1738692648904,-500.0,0.00010272,2]
[351657793,1738692648914,-500.0,0.00010272,2]
[351657794,1738692648924,-500.0,0.00010272,2]
[351657795,1738692648934,-565.68,0.00010272,2]
[351657796,1738692648944,-558.34,0.00010272,2]
[351657797,1738692648954,-500.0,0.00010272,2]
[351657798,1738692648964,-500.0,0.00010272,2]
[351657799,1738692648974,-1644.19,0.00010272,2]
[351657800,1738692648984,-500.0,0.00010272,2]
[351657801,1738692648994,-187.93,0.00010272,2]
[351657802,1738692649004,-500.0,0.00010272,2]
[351657803,1738692649013,-500.0,0.00010272,2]
[351657804,1738692649023,-500.0,0.00010272,2]
[351657805,1738692649033,-820.11,0.00010272,2]
[351657806,1738692649043,-777.25,0.00010272,2]
[351657807,1738692649054,-500.0,0.00010272,2]
[351657808,1738692649064,-500.0,0.00010272,2]
[351657809,1738692649074,-592.33,0.00010272,2]
[351657810,1738692649083,-500.0,0.00010272,2]
[351657811,1738692649093,-500.0,0.00010272,2]
[351657812,1738692649104,-207.84,0.00010272,2]
[351657813,1738692649118,-500.0,0.00010272,2]
[351657814,1738692649127,-1217.55,0.00010272,2]
[351657815,1738692649137,-500.0,0.00010272,2]
[351657816,1738692649147,-500.0,0.00010272,2]
[351657817,1738692649157,-635.95,0.00010272,2]
[351657818,1738692649166,-500.0,0.00010272,2]
[351657819,1738692649175,-500.0,0.00010272,2]
[351657820,1738692649185,-500.0,0.00010272,2]
[351657821,1738692649196,-500.0,0.00010272,2]
[351657822,1738692649206,-500.0,0.00010272,2]
[351657823,1738692649215,-500.0,0.00010272,2]
[351657824,1738692649225,-1100.63,0.00010272,2]
[351657825,1738692649235,-500.0,0.00010272,2]
[351657826,1738692649245,-514.24,0.00010272,2]
[351657827,1738692649255,-500.0,0.00010272,2]
[351657828,1738692649265,-500.0,0.00010272,2]
[351657829,1738692649274,-500.0,0.00010272,2]
[351657830,1738692649284,-500.0,0.00010272,2]
[351657831,1738692649294,-259.87,0.00010272,2]
[351657832,1738692649306,-605.9,0.00010272,2]
[351657833,1738692649316,-500.0,0.00010272,2]
[351657834,1738692649335,-626.86,0.00010273,2]
[351657835,1738692649345,-500.0,0.00010273,2]
[351657836,1738692649355,-277.78,0.00010273,2]
[351657837,1738692649365,-500.0,0.00010273,2]
[351657838,1738692649374,-435.87,0.00010273,2]
[351657839,1738692649384,-408.18,0.00010273,2]
[351657840,1738692649393,-500.0,0.00010273,2]
[351657841,1738692649403,-500.0,0.00010273,2]
[351657842,1738692649412,-363.74,0.00010273,2]
[351657843,1738692649422,-530.6,0.00010273,2]
[351657844,1738692649432,-341.58,0.00010273,2]
[351657845,1738692649442,-500.0,0.00010273,2]
[351657846,1738692649452,-500.0,0.00010273,2]
[351657847,1738692649462,-366.15,0.00010273,2]
[351657848,1738692649472,-183.46,0.00010273,2]
[351657849,1738692649481,-500.0,0.00010273,2]
[351657850,1738692649491,-500.0,0.00010273,2]
[351657851,1738692649501,-500.0,0.00010273,2]
[351657852,1738692649511,-500.0,0.00010273,2]
[351657853,1738692649520,-435.62,0.00010273,2]
[351657854,1738692649529,-267.28,0.00010273,2]
[351657855,1738692649539,-512.48,0.00010273,2]
[351657856,1738692649548,-458.46,0.00010273,2]
[351657857,1738692649558,-500.0,0.00010273,2]
[351657858,1738692649569,-500.0,0.00010273,2]
[351657859,1738692649593,-500.0,0.00010273,2]
[351657860,1738692649614,-186.19,0.00010273,2]
[351657861,1738692649637,-500.0,0.00010273,2]
[351657862,1738692649658,-500.0,0.00010273,2]
[351657863,1738692649680,-228.76,0.00010273,2]
[351657864,1738692649702,-500.0,0.00010273,2]
[351657865,1738692649726,-500.0,0.00010273,2]
[351657866,1738692649747,-500.0,0.00010273,2]
[351657867,1738692649770,-500.0,0.00010273,2]
[351657868,1738692649792,-500.0,0.00010273,2]
[351657869,1738692649815,-425.89,0.00010273,2]
[351657870,1738692649839,-500.0,0.00010273,2]
[351657871,1738692649849,-390.18,0.00010273,2]
[351657872,1738692649859,-220.31,0.00010273,2]
[351657873,1738692649869,-210.0,0.00010273,2]
[351657874,1738692649878,-194.45,0.00010273,2]
[351657875,1738692649888,-500.0,0.00010273,2]
[351657876,1738692649899,-545.28,0.00010273,2]
[351657877,1738692649908,-290.25,0.00010273,2]
[351657878,1738692649919,-424.15,0.00010273,2]
[351657879,1738692649929,-255.16575906,0.00010273,2]
[351657880,1738692649952,-244.83424094,0.00010273,2]
[351657881,1738692649962,-312.69,0.00010273,2]
[351657882,1738692649972,-500.0,0.00010273,2]
[351657883,1738692649982,-500.0,0.00010273,2]
[351657884,1738692649992,-500.0,0.00010273,2]
[351657885,1738692650002,-500.0,0.00010273,2]
[351657886,1738692650012,-643.19,0.00010273,2]
[351657887,1738692650021,-500.0,0.00010273,2]
[351657888,1738692650032,-500.0,0.00010273,2]
[351657889,1738692650042,-500.0,0.00010273,2]
[351657890,1738692650055,-500.0,0.00010273,2]
[351657891,1738692650064,-74.55575906,0.00010273,2]
[351657892,1738692650114,-500.0,9.998e-05,2]
[351657893,1738692650125,-425.44424094,0.00010273,2]
[351657894,1738692650135,-500.0,0.00010273,2]
[351657895,1738692650145,-500.0,0.00010273,2]
[351657896,1738692650155,-500.0,0.00010273,2]
[351657897,1738692650165,-500.0,0.00010273,2]
[351657898,1738692650175,-500.0,0.00010273,2]
[351657899,1738692650187,-500.0,0.00010273,2]
[351657900,1738692650197,-604.54,0.00010273,2]
[351657901,1738692650207,-919.24,0.00010273,2]
[351657902,1738692650217,-2414.84,0.00010273,2]
[351657903,1738692650227,-500.0,0.00010273,2]
[351657904,1738692650237,-500.0,0.00010273,2]
[351657905,1738692650247,-500.0,0.00010273,2]
[351657906,1738692650258,-500.0,0.00010273,2]
[351657907,1738692650268,-500.0,0.00010273,2]
[351657908,1738692650279,-500.0,0.00010273,2]
[351657909,1738692650288,-500.0,0.00010273,2]
[351657910,1738692650298,-500.0,0.00010273,2]
[351657911,1738692650310,-219.96,0.00010273,2]
[351657912,1738692650320,-500.0,0.00010273,2]
[351657913,1738692650329,-500.0,0.00010273,2]
[351657914,1738692650339,-320.08,0.00010273,2]
[351657915,1738692650349,-500.0,0.00010273,2]
[351657916,1738692650358,-500.0,0.00010273,2]
[351657917,1738692650368,-500.0,0.00010273,2]
[351657918,1738692650377,-500.0,0.00010273,2]
[351657919,1738692650388,-500.0,0.00010273,2]
[351657920,1738692650398,-500.0,0.00010273,2]
[351657921,1738692650407,-500.0,0.00010273,2]
[351657922,1738692650418,-500.0,0.00010273,2]
[351657923,1738692650427,-500.0,0.00010273,2]
[351657924,1738692650437,-500.0,0.00010273,2]
[351657925,1738692650447,-500.0,0.00010273,2]
[351657926,1738692650457,-1165.38,0.00010273,2]
[351657927,1738692650467,-500.0,0.00010273,2]
[351657928,1738692650478,-500.0,0.00010273,2]
[351657929,1738692650488,-1016.48,0.00010273,2]
[351657930,1738692650499,-500.0,0.00010273,2]
[351657931,1738692650509,-500.0,0.00010273,2]
[351657932,1738692650519,-500.0,0.00010273,2]
[351657933,1738692650528,-936.12,0.00010273,2]
[351657934,1738692650538,-377.75,0.00010273,2]
[351657935,1738692650548,-500.0,0.00010273,2]
[351657936,1738692650560,-500.0,0.00010273,2]
[351657937,1738692650569,-500.0,0.00010273,2]
[351657938,1738692650579,-532.66,0.00010273,2]
[351657939,1738692650589,-613.34,0.00010273,2]
[351657940,1738692650598,-762.39,0.00010273,2]
[351657941,1738692650608,-514.48,0.00010273,2]
[351657942,1738692650618,-500.0,0.00010273,2]
[351657943,1738692650627,-532.68,0.00010273,2]
[351657944,1738692650637,-555.63,0.00010273,2]
[351657945,1738692650647,-500.0,0.00010273,2]
[351657946,1738692650657,-684.72,0.00010273,2]
[351657947,1738692650666,-500.0,0.00010273,2]
[351657948,1738692650677,-500.0,0.00010273,2]
[351657949,1738692650688,-500.0,0.00010273,2]
[351657950,1738692650698,-500.0,0.00010273,2]
[351657951,1738692650708,-500.0,0.00010273,2]
[351657952,1738692650718,-500.0,0.00010273,2]
[351657953,1738692650727,-500.0,0.00010273,2]
[351657954,1738692650737,-500.0,0.00010273,2]
[351657955,1738692650747,-500.0,0.00010273,2]
[351657956,1738692650756,-373.84,0.00010273,2]
[351657957,1738692650766,-1002.96965609,0.00010291,2]
[351657958,1738692650775,-200.0,0.00010303,2]
[351657959,1738692650785,-200.0,0.00010303,2]
[351657960,1738692650795,-200.0,0.00010303,2]
[351657961,1738692650806,-200.0,0.00010303,2]
[351657962,1738692650816,-281.24405436,0.00010348,2]
[351657963,1738692650827,-635.5627001,0.00010353,2]
[351657964,1738692650837,-431.43955898,0.00010386,2]
[351657965,1738692650847,-1002.96965609,0.00010389,2]
[351657966,1738692650856,-200.0,0.00010406,2]
[351657967,1738692650866,-200.0,0.00010406,2]
[351657968,1738692650875,-200.0,0.00010406,2]
[351657969,1738692650885,-233.32,0.00010409,2]
[351657970,1738692650895,-500.0,0.00010409,2]
[351657971,1738692650906,-327.54,0.00010409,2]
[351657972,1738692650916,-500.0,0.00010409,2]
[351657973,1738692650926,-500.0,0.00010409,2]
[351657974,1738692650935,-619.15,0.00010409,2]
[351657975,1738692650945,-500.0,0.00010409,2]
[351657976,1738692650954,-500.0,0.00010409,2]
[351657977,1738692650964,-634.496518,0.00010409,2]
[351657978,1738692650974,-436.36,0.00010409,2]
[351657979,1738692650985,-500.0,0.00010409,2]
[351657980,1738692650994,-563.800411,0.00010409,2]
[351657981,1738692651004,-441.3,0.00010409,2]
[351657982,1738692651014,-637.86,0.00010409,2]
[351657983,1738692651024,-217.0,0.00010409,2]
[351657984,1738692651035,-358.82,0.00010409,2]
[351657985,1738692651045,-500.0,0.00010409,2]
[351657986,1738692651057,-500.0,0.00010409,2]
[351657987,1738692651067,-500.0,0.00010409,2]
[351657988,1738692651078,-296.63,0.00010409,2]
[351657989,1738692651088,-500.0,0.00010409,2]
[351657990,1738692651098,-500.0,0.00010409,2]
[351657991,1738692651108,-500.0,0.00010409,2]
[351657992,1738692651123,-500.0,0.00010409,2]
[351657993,1738692651133,-500.0,0.00010409,2]
[351657994,1738692651143,-575.71,0.00010409,2]
[351657995,1738692651154,-587.45,0.00010409,2]
[351657996,1738692651164,-500.0,0.00010409,2]
[351657997,1738692651174,-500.0,0.00010409,2]
[351657998,1738692651184,-500.0,0.00010409,2]
[351657999,1738692651196,-500.0,0.00010409,2]
[351658000,1738692651209,-500.0,0.00010409,2]
[351658001,1738692651219,-1116.97,0.00010409,2]
[351658002,1738692651230,-702.39,0.00010409,2]
[351658003,1738692651241,-1009.36,0.00010409,2]
[351658004,1738692651250,-1278.5,0.00010409,2]
[351658005,1738692651260,-500.0,0.00010409,2]
[351658006,1738692651270,-500.0,0.00010409,2]
[351658007,1738692651280,-500.0,0.00010409,2]
[351658008,1738692651291,-500.0,0.00010409,2]
[351658009,1738692651301,-500.0,0.00010409,2]
[351658010,1738692651311,-595.35,0.00010409,2]
[351658011,1738692651321,-500.0,0.00010409,2]
[351658012,1738692651331,-500.0,0.00010409,2]
[351658013,1738692651342,-500.0,0.00010409,2]
[351658014,1738692651363,-500.0,0.00010409,2]
[351658015,1738692651386,-500.0,0.00010409,2]
[351658016,1738692651408,-500.0,0.00010409,2]
[351658017,1738692651431,-565.68,0.00010409,2]
[351658018,1738692651453,-558.34,0.00010409,2]
[351658019,1738692651475,-500.0,0.00010409,2]
[351658020,1738692651496,-500.0,0.00010409,2]
[351658021,1738692651517,-1644.19,0.00010409,2]
[351658022,1738692651539,-500.0,0.00010409,2]
[351658023,1738692651564,-500.0,0.00010409,2]
[351658024,1738692651592,-500.0,0.00010409,2]
[351658025,1738692651620,-500.0,0.00010409,2]
[351658026,1738692651632,-230.841971,0.00010409,2]
[351658027,1738692651641,-820.11,0.00010409,2]
[351658028,1738692651651,-777.25,0.00010409,2]
[351658029,1738692651661,-500.0,0.00010409,2]
[351658030,1738692651670,-500.0,0.00010409,2]
[351658031,1738692651680,-592.33,0.00010409,2]
[351658032,1738692651689,-500.0,0.00010409,2]
[351658033,1738692651698,-500.0,0.00010409,2]
[351658034,1738692651708,-500.0,0.00010409,2]
[351658035,1738692651717,-1217.55,0.00010409,2]
[351658036,1738692651727,-500.0,0.00010409,2]
[351658037,1738692651735,-500.0,0.00010409,2]
[351658038,1738692651745,-635.95,0.00010409,2]
[351658039,1738692651755,-500.0,0.00010409,2]
[351658040,1738692651764,-500.0,0.00010409,2]
[351658041,1738692651774,-500.0,0.00010409,2]
[351658042,1738692651783,-500.0,0.00010409,2]
[351658043,1738692651793,-500.0,0.00010409,2]
[351658044,1738692651802,-500.0,0.00010409,2]
[351658045,1738692651811,-1100.63,0.00010409,2]
[351658046,1738692651820,-500.0,0.00010409,2]
[351658047,1738692651830,-514.24,0.00010409,2]
[351658048,1738692651839,-500.0,0.00010409,2]
[351658049,1738692651849,-500.0,0.00010409,2]
[351658050,1738692651858,-500.0,0.00010409,2]
[351658051,1738692651868,-500.0,0.00010409,2]
[351658052,1738692651877,-605.9,0.00010409,2]
[351658053,1738692651887,-500.0,0.00010409,2]
[351658054,1738692651895,-229.6,0.0001041,2]
[351658055,1738692651902,-500.0,0.0001041,2]
[351658056,1738692651909,-500.0,0.0001041,2]
[351658057,1738692651918,-500.0,0.0001041,2]
[351658058,1738692651926,-500.0,0.0001041,2]
[351658059,1738692651935,-500.0,0.0001041,2]
[351658060,1738692651944,-500.0,0.0001041,2]
[351658061,1738692651952,-500.0,0.0001041,2]
[351658062,1738692651960,-207.32,0.0001041,2]
[351658063,1738692651968,-500.0,0.0001041,2]
[351658064,1738692651976,-465.68,0.0001041,2]
[351658065,1738692651983,-500.0,0.0001041,2]
[351658066,1738692651990,-500.0,0.0001041,2]
[351658067,1738692651998,-500.0,0.0001041,2]
[351658068,1738692652007,-500.0,0.0001041,2]
[351658069,1738692652017,-280.02,0.0001041,2]
[351658070,1738692652028,-500.0,0.0001041,2]